bitfinex/quotes_BTCUSD_20240717
["timestamp","ask_amount","ask_price","bid_price","bid_amount"]
[1721193620359,0.00937,65975.0,65974.0,3.27157859]
[1721193620561,0.00937,65975.0,65974.0,3.00857859]
[1721193620759,0.00937,65975.0,65974.0,2.9479095]
[1721193620997,0.00937,65975.0,65974.0,2.92987859]
[1721193622457,0.00837,65975.0,65974.0,2.9339095]
[1721193622789,0.00837,65975.0,65974.0,2.9479095]
[1721193623539,0.00937,65975.0,65974.0,2.81806241]
[1721193623739,0.00937,65975.0,65974.0,2.94388951]
[1721193624281,0.00937,65975.0,65974.0,2.78950777]
[1721193624464,0.09187,65975.0,65974.0,2.38635877]
[1721193624877,0.09187,65975.0,65974.0,1.31020977]
[1721193625075,0.15357,65975.0,65974.0,0.31191177]
[1721193625276,0.15357,65975.0,65974.0,0.91820977]
[1721193625476,0.15257,65975.0,65974.0,1.20735877]
[1721193625818,0.15357,65975.0,65974.0,1.21935877]
[1721193626378,0.15257,65975.0,65974.0,1.19335877]
[1721193626617,0.15257,65975.0,65974.0,1.19638303]
[1721193626774,0.15257,65975.0,65974.0,1.19938303]
[1721193627148,0.15257,65975.0,65974.0,1.20038303]
[1721193627944,0.15257,65975.0,65974.0,1.19338303]
[1721193628146,0.15257,65975.0,65974.0,1.06753167]
[1721193628405,0.15257,65975.0,65974.0,1.07153167]
[1721193628607,0.15257,65975.0,65974.0,1.07553167]
[1721193629208,0.15257,65975.0,65974.0,1.07153167]
[1721193629505,0.14854736,65975.0,65974.0,1.07453167]
[1721193629648,0.14854736,65975.0,65974.0,1.07053167]
[1721193630060,0.14854736,65975.0,65974.0,1.07353167]
[1721193630289,0.14854736,65975.0,65974.0,1.07145567]
[1721193630687,0.14854736,65975.0,65974.0,1.07445567]
[1721193631630,0.14854736,65975.0,65974.0,1.20030564]
[1721193631863,0.00434736,65975.0,65974.0,1.20252776]
[1721193632273,0.00434736,65975.0,65974.0,1.7361585]
[1721193633171,0.00434736,65975.0,65974.0,1.65705038]
[1721193633396,0.00434736,65975.0,65974.0,1.66105038]
[1721193633535,0.00434736,65975.0,65974.0,1.65805038]
[1721193633729,0.00434736,65975.0,65974.0,1.66405038]
[1721193633992,0.00434736,65975.0,65974.0,1.50966864]
[1721193634662,0.00434736,65975.0,65974.0,1.49966864]
[1721193634864,0.00434736,65975.0,65974.0,1.50566864]
[1721193635046,0.00434736,65975.0,65974.0,1.51066864]
[1721193635585,0.00434736,65975.0,65974.0,1.50566864]
[1721193635985,0.00534736,65975.0,65974.0,1.51266864]
[1721193636185,0.00534736,65975.0,65974.0,1.51267442]
[1721193636588,0.00534736,65975.0,65974.0,1.3868266]
[1721193636763,0.00534736,65975.0,65974.0,1.49967365]
[1721193636764,0.00434736,65975.0,65974.0,1.49967365]
[1721193637008,0.00534736,65975.0,65974.0,1.50767365]
[1721193637584,0.00534736,65975.0,65974.0,1.49967365]
[1721193637785,0.00634736,65975.0,65974.0,1.3818266]
[1721193637917,0.00634736,65975.0,65974.0,1.50767364]
[1721193638099,0.00734736,65975.0,65974.0,1.51467364]
[1721193638663,0.06834736,65975.0,65974.0,0.60522664]
[1721193638839,0.06834736,65975.0,65974.0,0.7825286]
[1721193639703,0.06734736,65975.0,65974.0,0.7755286]
[1721193639904,0.06534736,65975.0,65974.0,0.7675286]
[1721193640108,0.06634736,65975.0,65974.0,0.7745286]
[1721193640307,0.06734736,65975.0,65974.0,0.7825286]
[1721193642419,0.06734736,65975.0,65974.0,0.90837892]
[1721193642674,0.06734736,65975.0,65974.0,0.7825286]
[1721193642870,0.06734736,65975.0,65974.0,0.90837883]
[1721193643542,0.06734736,65975.0,65974.0,0.7825286]
[1721193645767,0.14504736,65975.0,65974.0,0.0246566]
[1721193647364,0.14404736,65975.0,65974.0,0.0166566]
[1721193647478,0.14404736,65975.0,65974.0,0.0196566]
[1721193647836,0.14304736,65975.0,65974.0,0.0126566]
[1721193648393,0.14304736,65975.0,65974.0,0.1672306]
[1721193649446,0.14304736,65975.0,65974.0,0.0156566]
[1721193649629,0.80518566,65975.0,65974.0,0.0156566]
[1721193649825,1.41147566,65975.0,65974.0,0.0156566]
[1721193650041,1.41147566,65975.0,65974.0,0.006924]
[1721193650283,1.43519147,65975.0,65974.0,0.006924]
[1721193650890,1.50318539,65975.0,65974.0,0.003924]
[1721193651292,1.51118539,65975.0,65974.0,0.004924]
[1721193651424,1.51118539,65975.0,65974.0,0.003924]
[1721193651624,1.48849937,65975.0,65974.0,0.003924]
[1721193651833,1.45119147,65975.0,65974.0,0.001924]
[1721193652028,1.43519147,65975.0,65974.0,0.000924]
[1721193652235,1.43719147,65975.0,65974.0,0.000924]
[1721193652720,1.43519147,65975.0,65974.0,0.000924]
[1721193652921,1.08204647,65975.0,65974.0,0.000924]
[1721193653135,1.06733066,65975.0,65974.0,0.001924]
[1721193653535,0.15904736,65975.0,65974.0,0.002924]
[1721193653945,0.15904736,65975.0,65974.0,0.01346287]
[1721193654145,0.15204736,65975.0,65974.0,0.001924]
[1721193654345,0.15204736,65975.0,65974.0,0.01246287]
[1721193654609,0.15904736,65975.0,65974.0,0.002924]
[1721193654813,0.15904736,65975.0,65974.0,0.01246287]
[1721193655086,0.15004736,65975.0,65974.0,0.01146287]
[1721193655292,0.16504736,65975.0,65974.0,0.01346287]
[1721193655816,0.30861936,65975.0,65974.0,0.01246287]
[1721193656018,0.31139033,65975.0,65974.0,0.01246287]
[1721193656314,0.31661936,65975.0,65974.0,0.002924]
[1721193656661,1.0772911,65975.0,65974.0,0.002924]
[1721193656863,1.08006207,65975.0,65974.0,0.002924]
[1721193657066,1.0632911,65975.0,65974.0,0.001924]
[1721193657469,1.0682911,65975.0,65974.0,0.002924]
[1721193657683,1.0682911,65975.0,65974.0,0.001924]
[1721193658111,1.0652911,65975.0,65974.0,0.001924]
[1721193658310,0.4590011,65975.0,65974.0,0.001924]
[1721193658515,0.02234736,65975.0,65974.0,0.457647]
[1721193658715,0.02234736,65975.0,65974.0,0.760796]
[1721193658916,0.02234736,65975.0,65974.0,0.85213487]
[1721193658917,0.01434736,65975.0,65974.0,0.85213487]
[1721193659330,0.02234736,65975.0,65974.0,0.85313487]
[1721193659544,0.02234736,65975.0,65974.0,1.15628387]
[1721193659743,0.00434736,65975.0,65974.0,1.15428387]
[1721193660213,0.01334736,65975.0,65974.0,1.15528387]
[1721193660430,0.01334736,65975.0,65974.0,1.15428387]
[1721193661479,0.01634736,65975.0,65974.0,1.15428387]
[1721193662516,0.01634736,65975.0,65974.0,1.45743287]
[1721193662711,0.01634736,65975.0,65974.0,1.64767994]
[1721193663603,0.01634736,65975.0,65974.0,0.94286449]
[1721193663831,0.01634736,65975.0,65974.0,1.19833094]
[1721193664264,0.01634736,65975.0,65974.0,1.07248387]
[1721193664638,0.00434736,65975.0,65974.0,1.07248387]
[1721193664841,0.00434736,65975.0,65974.0,1.08548387]
[1721193665169,0.00834736,65975.0,65974.0,1.08548387]
[1721193665589,0.00534736,65975.0,65974.0,1.08548387]
[1721193665755,0.00634736,65975.0,65974.0,1.09648387]
[1721193666132,0.00534736,65975.0,65974.0,1.08348387]
[1721193666549,0.00634736,65975.0,65974.0,1.09548387]
[1721193667079,0.00634736,65975.0,65974.0,1.23818387]
[1721193667886,0.00634736,65975.0,65974.0,1.54133287]
[1721193668324,0.00634736,65975.0,65974.0,1.23818387]
[1721193671339,0.00634736,65975.0,65974.0,1.66717984]
[1721193671545,0.00634736,65975.0,65974.0,2.42471058]
[1721193671677,0.00634736,65975.0,65974.0,2.47471058]
[1721193672545,0.00634736,65975.0,65974.0,2.34886361]
[1721193672722,0.00534736,65975.0,65974.0,2.96683746]
[1721193672927,0.00534736,65975.0,65974.0,2.65168846]
[1721193672928,0.00434736,65975.0,65974.0,2.65168846]
[1721193673347,0.00434736,65975.0,65974.0,2.72862861]
[1721193673586,0.00434736,65975.0,65974.0,2.69659346]
[1721193673760,0.00434736,65975.0,65974.0,2.71059346]
[1721193674077,0.00434736,65975.0,65974.0,2.70659346]
[1721193674223,0.00434736,65975.0,65974.0,2.66168846]
[1721193674402,0.00434736,65975.0,65974.0,2.67568846]
[1721193674642,0.00434736,65975.0,65974.0,2.66568846]
[1721193675217,0.00434736,65975.0,65974.0,2.61568846]
[1721193675713,0.00434736,65975.0,65974.0,2.50386361]
[1721193675868,0.00434736,65975.0,65974.0,2.62968256]
[1721193676692,0.00434736,65975.0,65974.0,2.61568256]
[1721193676876,0.00434736,65975.0,65974.0,2.00937363]
[1721193677222,0.00434736,65975.0,65974.0,2.20168256]
[1721193677424,0.00434736,65975.0,65974.0,2.21568256]
[1721193677557,0.00434736,65975.0,65974.0,2.22968256]
[1721193677763,0.00434736,65975.0,65974.0,2.21568256]
[1721193678381,0.00434736,65975.0,65974.0,2.22968256]
[1721193678798,0.00434736,65975.0,65974.0,2.10386361]
[1721193679159,0.00434736,65975.0,65974.0,2.26568778]
[1721193679385,0.00434736,65975.0,65974.0,2.21568778]
[1721193679603,0.00434736,65975.0,65974.0,2.25168778]
[1721193679833,0.00434736,65975.0,65974.0,2.21568778]
[1721193680074,0.00434736,65975.0,65974.0,2.26568778]
[1721193680315,0.00434736,65975.0,65974.0,2.41568778]
[1721193680595,0.00434736,65975.0,65974.0,2.42968778]
[1721193681043,0.00434736,65975.0,65974.0,2.46568778]
[1721193681496,0.00434736,65975.0,65974.0,2.47968778]
[1721193681720,0.00434736,65975.0,65974.0,2.46568778]
[1721193681916,0.00434736,65975.0,65974.0,2.33986361]
[1721193682147,0.00434736,65975.0,65974.0,2.47967835]
[1721193682613,0.00434736,65975.0,65974.0,2.78283083]
[1721193682814,0.00434736,65975.0,65974.0,2.76883083]
[1721193683111,1e-08,65975.0,65974.0,2.78283083]
[1721193683690,1e-08,65975.0,65974.0,2.782818]
[1721193684133,1e-08,65975.0,65974.0,2.768818]
[1721193684683,1e-08,65975.0,65974.0,2.782818]
[1721193684888,1e-08,65975.0,65974.0,2.732818]
[1721193685069,1e-08,65980.0,65974.0,2.782818]
[1721193685271,1e-08,65980.0,65979.0,2.73430074]
[1721193685473,1e-08,65980.0,65979.0,4.12460807]
[1721193685719,1e-08,65980.0,65979.0,4.13659627]
[1721193686461,1e-08,65980.0,65979.0,4.95659627]
[1721193686649,1e-08,65980.0,65979.0,4.19949403]
[1721193687046,1e-08,65980.0,65979.0,4.40589114]
[1721193687227,1e-08,65980.0,65979.0,4.41989114]
[1721193687399,1e-08,65980.0,65979.0,5.16073362]
[1721193687599,1e-08,65980.0,65979.0,4.38473362]
[1721193688003,1e-08,65980.0,65979.0,4.37073362]
[1721193688210,1e-08,65980.0,65979.0,4.35673362]
[1721193688390,1e-08,65980.0,65979.0,4.37071617]
[1721193688586,0.0146418,65992.0,65991.0,1.91689]
[1721193688812,0.0146418,65992.0,65991.0,2.6046635]
[1721193689235,0.0146418,65992.0,65991.0,2.61660451]
[1721193689589,0.06116987,66009.0,66005.0,1.969545]
[1721193689795,0.06116987,66009.0,66005.0,2.78009971]
[1721193689998,0.06116987,66009.0,66005.0,2.83009971]
[1721193690241,0.06116987,66009.0,66005.0,2.78009971]
[1721193690438,0.06116987,66009.0,66005.0,2.82777043]
[1721193690617,0.06116987,66009.0,66005.0,2.8597544]
[1721193690815,0.06116987,66009.0,66005.0,2.8637544]
[1721193691017,0.06116987,66009.0,66005.0,2.8597544]
[1721193691193,0.06116987,66009.0,66008.0,2.419454]
[1721193691400,0.06116987,66009.0,66008.0,2.79727294]
[1721193691716,0.06116987,66009.0,66008.0,2.85202629]
[1721193692321,0.06116987,66009.0,66008.0,2.99622629]
[1721193692522,0.06116987,66009.0,66008.0,2.43133329]
[1721193692842,0.06116987,66009.0,66008.0,1.41480919]
[1721193693042,0.06116987,66009.0,66008.0,1.66675503]
[1721193693451,0.06116987,66009.0,66008.0,1.71443758]
[1721193693666,0.06116987,66009.0,66008.0,1.73550838]
[1721193693857,0.06116987,66009.0,66008.0,1.58319093]
[1721193694060,0.06116987,66009.0,66008.0,1.29837329]
[1721193694225,0.06116987,66009.0,66008.0,1.32637329]
[1721193694428,0.06116987,66009.0,66008.0,1.35500038]
[1721193694632,0.06116987,66009.0,66008.0,1.46677359]
[1721193694827,0.06116987,66009.0,66008.0,1.75576659]
[1721193695048,0.06116987,66009.0,66008.0,1.76976659]
[1721193695454,0.06200987,66009.0,66008.0,1.76976659]
[1721193695692,0.06200987,66009.0,66008.0,1.75576659]
[1721193695950,0.06200987,66009.0,66008.0,1.77976659]
[1721193696151,0.06200987,66009.0,66008.0,1.76576659]
[1721193696512,0.06200987,66009.0,66008.0,1.77976659]
[1721193696937,0.06200987,66009.0,66008.0,1.84044559]
[1721193697172,0.06200987,66009.0,66008.0,1.82644559]
[1721193697341,0.06200987,66009.0,66008.0,1.81644559]
[1721193697568,0.06200987,66009.0,66008.0,1.52445259]
[1721193697771,0.06200987,66009.0,66008.0,1.37307085]
[1721193698175,0.06200987,66009.0,66008.0,1.35907085]
[1721193698332,0.06200987,66009.0,66008.0,1.29839185]
[1721193698543,0.06200987,66009.0,66008.0,1.30839185]
[1721193699045,0.06200987,66009.0,66008.0,1.29839185]
[1721193699243,0.06200987,66009.0,66008.0,1.30839185]
[1721193699883,0.06200987,66009.0,66008.0,1.31939185]
[1721193700082,0.13740987,66009.0,66008.0,1.30839185]
[1721193700471,0.13740987,66009.0,66008.0,1.31939185]
[1721193700872,0.13740987,66009.0,66008.0,1.31939864]
[1721193701294,0.06200987,66009.0,66008.0,1.30939864]
[1721193701497,0.06200987,66009.0,66008.0,1.54095517]
[1721193701696,0.06200987,66009.0,66008.0,1.47378038]
[1721193702298,0.06200987,66009.0,66008.0,1.76577338]
[1721193702508,0.06200987,66009.0,66008.0,1.90467338]
[1721193703080,0.06200987,66009.0,66008.0,2.03660152]
[1721193703287,0.06200987,66009.0,66008.0,2.52959452]
[1721193703513,0.06200987,66009.0,66008.0,2.01514671]
[1721193703724,0.06200987,66009.0,66008.0,1.76677338]
[1721193704105,0.06200987,66009.0,66008.0,1.76676174]
[1721193704500,0.06200987,66009.0,66008.0,1.79879915]
[1721193704727,0.06200987,66009.0,66008.0,1.75576101]
[1721193705314,0.06200987,66009.0,66008.0,1.76576101]
[1721193705694,0.06200987,66009.0,66008.0,1.76976101]
[1721193705892,0.06200987,66009.0,66008.0,1.46676801]
[1721193706108,0.06200987,66009.0,66008.0,1.48076801]
[1721193706307,0.06200987,66009.0,66008.0,1.78376101]
[1721193706535,0.06200987,66009.0,66008.0,1.76976101]
[1721193706732,0.06200987,66009.0,66008.0,1.98008915]
[1721193706934,0.06200987,66009.0,66008.0,1.9253358]
[1721193707140,0.06200987,66009.0,66008.0,1.79956817]
[1721193707356,0.06200987,66009.0,66008.0,1.73639338]
[1721193707557,0.06200987,66009.0,66008.0,2.06576817]
[1721193707758,0.00837,66013.0,66012.0,1.413387]
[1721193707958,0.00837,66013.0,66012.0,2.13934374]
[1721193708231,0.00837,66013.0,66012.0,2.20147167]
[1721193708400,0.00837,66013.0,66012.0,2.20622502]
[1721193708600,0.00837,66013.0,66012.0,2.15147167]
[1721193708805,0.00837,66013.0,66012.0,2.27723882]
[1721193709012,0.00837,66013.0,66012.0,2.46588954]
[1721193709164,0.00837,66013.0,66012.0,2.54668954]
[1721193709608,0.00837,66013.0,66012.0,2.35803882]
[1721193709983,0.00837,66013.0,66012.0,2.23227167]
[1721193710306,0.00837,66013.0,66012.0,2.42662502]
[1721193710511,0.00837,66013.0,66012.0,2.41262502]
[1721193710735,0.00837,66013.0,66012.0,2.36262502]
[1721193710888,0.00837,66013.0,66012.0,2.37662502]
[1721193711109,0.00837,66013.0,66012.0,2.38532387]
[1721193711504,0.00837,66013.0,66012.0,2.37132387]
[1721193711709,0.00837,66013.0,66012.0,1.75503142]
[1721193711912,0.00837,66013.0,66012.0,1.88519552]
[1721193712351,0.00837,66013.0,66012.0,1.87119552]
[1721193712757,0.00837,66013.0,66012.0,1.88519552]
[1721193713160,0.00837,66013.0,66012.0,1.87119552]
[1721193713368,0.00837,66013.0,66012.0,1.85719552]
[1721193713564,0.00837,66013.0,66012.0,1.87119552]
[1721193713762,0.00837,66013.0,66012.0,2.24292387]
[1721193713966,0.00837,66013.0,66012.0,2.37417052]
[1721193714286,0.00837,66013.0,66012.0,2.38817052]
[1721193714927,0.00837,66013.0,66012.0,2.46677052]
[1721193715487,0.00837,66013.0,66012.0,2.52837052]
[1721193715684,0.00837,66013.0,66012.0,2.58312387]
[1721193716048,0.00837,66013.0,66012.0,2.89750029]
[1721193718678,0.00837,66013.0,66012.0,2.84274694]
[1721193719361,0.00837,66013.0,66012.0,2.52837052]
[1721193719547,0.00841,66013.0,66012.0,2.84274797]
[1721193720819,0.00841,66013.0,66012.0,2.89750132]
[1721193721277,0.00841,66013.0,66012.0,2.59452632]
[1721193721481,0.00841,66013.0,66012.0,2.45432632]
[1721193721879,0.00841,66013.0,66012.0,2.13994887]
[1721193722036,0.00841,66013.0,66012.0,2.4543264]
[1721193722665,0.00841,66013.0,66012.0,2.39957305]
[1721193723608,0.00841,66013.0,66012.0,2.82854805]
[1721193723810,0.00841,66013.0,66012.0,2.8333014]
[1721193724147,0.00841,66013.0,66012.0,2.8992014]
[1721193724982,0.00841,66013.0,66012.0,2.84444805]
[1721193725339,0.00841,66013.0,66012.0,2.84444592]
[1721193725485,0.00841,66013.0,66012.0,2.89919927]
[1721193725916,0.00841,66013.0,66012.0,2.50200682]
[1721193726125,0.00841,66013.0,66012.0,2.02896715]
[1721193726316,0.00841,66013.0,66012.0,1.22098894]
[1721193726655,0.00841,66013.0,66012.0,1.23498894]
[1721193726991,0.00841,66013.0,66012.0,1.22098894]
[1721193727393,0.00841,66013.0,66012.0,1.52396394]
[1721193727615,0.00841,66013.0,66012.0,1.50996394]
[1721193727797,0.00841,66013.0,66012.0,1.52396394]
[1721193728239,0.00841,66013.0,66012.0,1.67834568]
[1721193728447,0.00841,66013.0,66012.0,1.67836519]
[1721193729273,0.00841,66013.0,66012.0,1.69236519]
[1721193729515,0.00841,66013.0,66012.0,1.70636519]
[1721193731562,0.06981,66013.0,66012.0,1.55198147]
[1721193733033,0.00841,66013.0,66012.0,1.55198147]
[1721193737929,0.00841,66013.0,66012.0,1.42621378]
[1721193738162,0.08891,66013.0,66012.0,1.55198147]
[1721193738369,0.15301,66013.0,66012.0,1.42621378]
[1721193738516,0.15301,66013.0,66012.0,1.55198226]
[1721193738918,0.13091,66013.0,66012.0,1.55198226]
[1721193740005,0.00837,66018.0,66017.0,1.060332]
[1721193740210,0.00837,66018.0,66017.0,1.18610048]
[1721193740447,0.00837,66018.0,66017.0,1.19617845]
[1721193740669,0.07467,66018.0,66017.0,1.19617845]
[1721193741461,0.07467,66018.0,66017.0,1.20717845]
[1721193742049,0.15397,66018.0,66017.0,1.20717845]
[1721193742253,0.15397,66018.0,66017.0,0.9129253]
[1721193742472,0.15397,66018.0,66017.0,0.9239253]
[1721193743090,0.15397,66018.0,66017.0,0.9139253]
[1721193744635,0.15397,66018.0,66017.0,0.91392639]
[1721193744766,0.15397,66018.0,66017.0,0.30802239]
[1721193744960,0.15397,66018.0,66017.0,0.04077682]
[1721193744961,0.305443,66018.0,66017.0,0.04077682]
[1721193745183,0.8158113,66018.0,66017.0,0.03069885]
[1721193745409,1.4217053,66018.0,66017.0,0.03069885]
[1721193745744,1.0687583,66018.0,66017.0,0.03069885]
[1721193745882,0.76277174,66018.0,66017.0,0.00869885]
[1721193746079,0.76377174,66018.0,66017.0,0.00969885]
[1721193746482,0.76277174,66018.0,66017.0,0.00969885]
[1721193746684,0.15497,66018.0,66017.0,0.01069885]
[1721193746884,0.30921397,66018.0,66017.0,0.00969885]
[1721193747083,0.306443,66018.0,66017.0,0.01069885]
[1721193747401,0.15497,66018.0,66017.0,0.01069885]
[1721193747625,0.15497,66018.0,66017.0,0.47537982]
[1721193747789,0.15497,66018.0,66017.0,0.46537982]
[1721193747984,0.15497,66018.0,66017.0,0.76833182]
[1721193749031,0.15497,66018.0,66017.0,0.76763297]
[1721193749878,0.15697,66018.0,66017.0,0.76763297]
[1721193750267,0.15797,66018.0,66017.0,0.46468097]
[1721193750633,0.15497,66018.0,66017.0,0.46468097]
[1721193750835,0.15797,66018.0,66017.0,0.46468097]
[1721193751250,0.15801,66018.0,66017.0,0.46468097]
[1721193752472,0.15701,66018.0,66017.0,0.46468097]
[1721193752809,0.15401,66018.0,66017.0,0.76763297]
[1721193753011,0.15801,66018.0,66017.0,0.76763297]
[1721193753310,0.15401,66018.0,66017.0,0.76763297]
[1721193753820,0.15801,66018.0,66017.0,0.76763297]
[1721193754243,0.15801,66018.0,66017.0,0.46468097]
[1721193754775,0.46386474,66018.0,66017.0,0.01025297]
[1721193755004,0.0764,66014.0,66009.0,0.152417]
[1721193755207,0.0619,66013.0,66010.0,0.151491]
[1721193756007,0.0619,66013.0,66009.0,0.000924]
[1721193756235,0.0619,66013.0,66011.0,0.151489]
[1721193756991,0.213385,66013.0,66009.0,0.000924]
[1721193757101,0.0619,66013.0,66010.0,0.001]
[1721193757501,0.0619,66013.0,66009.0,0.153417]
[1721193757716,0.0619,66013.0,66009.0,0.152417]
[1721193758539,0.0619,66013.0,66010.0,0.16289253]
[1721193758967,0.0619,66013.0,66011.0,0.002]
[1721193759181,0.0619,66013.0,66011.0,0.0133976]
[1721193759597,0.0619,66013.0,66011.0,0.001]
[1721193760015,0.0649,66013.0,66009.0,0.000924]
[1721193760419,0.0679,66013.0,66010.0,0.151492]
[1721193760764,0.0679,66013.0,66010.0,0.151392]
[1721193761005,0.0619,66013.0,66011.0,0.152413]
[1721193761206,0.0619,66013.0,66011.0,0.000924]
[1721193761411,0.0607,66016.0,66015.0,0.15148]
[1721193761614,0.08381,66018.0,66016.0,0.151476]
[1721193761811,0.00277097,66017.0,66016.0,0.151476]
[1721193762741,0.00277097,66017.0,66016.0,0.454432]
[1721193763038,0.00277097,66017.0,66016.0,0.757388]
[1721193763268,0.00277097,66017.0,66016.0,0.758388]
[1721193763419,0.00577097,66017.0,66016.0,0.759388]
[1721193763618,0.003,66017.0,66016.0,0.759388]
[1721193764477,0.00841,66018.0,66017.0,0.454428]
[1721193764879,0.0806,66017.0,66016.0,0.002]
[1721193765151,0.0806,66017.0,66016.0,0.0009]
[1721193765355,0.0806,66017.0,66016.0,0.152378]
[1721193765555,0.0806,66017.0,66016.0,0.153378]
[1721193765852,0.0806,66017.0,66016.0,0.0019]
[1721193766053,0.0806,66017.0,66015.0,0.15148]
[1721193766231,0.0806,66017.0,66016.0,0.001]
[1721193766961,0.0836,66017.0,66016.0,0.002]
[1721193767166,0.0836,66017.0,66016.0,0.001]
[1721193768253,0.0836,66017.0,66016.0,0.152478]
[1721193768254,0.003,66017.0,66016.0,0.152478]
[1721193769347,0.00577097,66017.0,66016.0,0.152478]
[1721193769707,0.00277097,66017.0,66016.0,0.151478]
[1721193770002,0.00577097,66017.0,66016.0,0.153478]
[1721193770512,0.00277097,66017.0,66016.0,0.151478]
[1721193770671,0.00577097,66017.0,66016.0,0.152478]
[1721193771250,0.00577097,66017.0,66016.0,0.153478]
[1721193773312,0.00577097,66017.0,66016.0,0.153378]
[1721193777715,0.00577097,66017.0,66016.0,0.002]
[1721193778341,0.04676837,66017.0,66016.0,0.002]
[1721193778521,0.0439974,66017.0,66016.0,0.002]
[1721193778741,0.04980793,66017.0,66016.0,0.002]
[1721193779801,0.04676837,66017.0,66016.0,0.002]
[1721193780308,0.0497611,66017.0,66016.0,0.0019]
[1721193780504,0.19846613,66017.0,66016.0,0.0019]
[1721193780839,1.34440387,66017.0,66016.0,0.0019]
[1721193781065,1.50613341,66017.0,66016.0,0.0019]
[1721193781225,1.43803517,66017.0,66016.0,0.0019]
[1721193781429,1.58803517,66017.0,66016.0,0.0019]
[1721193781649,1.58803517,66017.0,66016.0,0.00037025]
[1721193781650,2.04533674,66017.0,66016.0,0.00037025]
[1721193782091,2.18153322,66017.0,66016.0,0.00037025]
[1721193782310,1.58803517,66017.0,66016.0,0.00037025]
[1721193782508,0.896837,66012.0,66011.0,0.000924]
[1721193782750,1.23884404,66012.0,66011.0,0.000924]
[1721193782954,1.54181904,66012.0,66011.0,0.000924]
[1721193783361,1.54180278,66012.0,66011.0,0.000924]
[1721193783925,1.54180278,66012.0,66011.0,0.001924]
[1721193783926,1.54580278,66012.0,66011.0,0.001924]
[1721193784597,1.59580278,66012.0,66011.0,0.001924]
[1721193784742,1.63666728,66012.0,66011.0,0.001924]
[1721193784954,1.48231771,66012.0,66011.0,0.001924]
[1721193785749,1.44932715,66012.0,66011.0,0.002924]
[1721193785969,1.49016966,66012.0,66011.0,0.002924]
[1721193787088,1.49016966,66012.0,66011.0,0.002824]
[1721193788893,1.43989008,66012.0,66011.0,0.002824]
[1721193789094,1.48999551,66012.0,66011.0,0.002824]
[1721193789417,1.48999555,66012.0,66011.0,0.002824]
[1721193792258,1.44932722,66012.0,66011.0,0.002824]
[1721193792979,1.39932722,66012.0,66011.0,0.002824]
[1721193793121,1.56269158,66012.0,66011.0,0.002824]
[1721193793527,1.51269158,66012.0,66011.0,0.002824]
[1721193793934,1.43639158,66012.0,66011.0,0.002824]
[1721193795419,1.43636469,66012.0,66011.0,0.002824]
[1721193795619,1.3230272,66012.0,66011.0,0.002824]
[1721193795865,1.31359008,66012.0,66011.0,0.002824]
[1721193796043,0.62084374,66012.0,66011.0,0.002824]
[1721193796242,0.66617151,66012.0,66011.0,0.002824]
[1721193796927,0.66617151,66012.0,66011.0,0.002324]
[1721193798251,0.05732777,66012.0,66011.0,1.20235]
[1721193798435,0.00084,66016.0,66015.0,0.454441]
[1721193798637,0.00084,66016.0,66015.0,1.7286897]
[1721193798771,0.00084,66016.0,66015.0,1.3257287]
[1721193799116,0.00084,66016.0,66015.0,1.199963]
[1721193799327,0.00084,66016.0,66015.0,1.502924]
[1721193799459,0.00084,66016.0,66015.0,1.78307597]
[1721193799994,0.00084,66016.0,66015.0,1.7951158]
[1721193800395,0.00084,66016.0,66015.0,1.7971158]
[1721193801604,0.00084,66016.0,66015.0,1.67134557]
[1721193801777,0.00084,66016.0,66015.0,1.79510843]
[1721193801981,0.00084,66016.0,66015.0,1.80810843]
[1721193802182,0.00084,66016.0,66015.0,1.80710843]
[1721193802604,0.00084,66016.0,66015.0,1.80910843]
[1721193802925,0.00084,66016.0,66015.0,1.82210843]
[1721193803552,0.00084,66016.0,66015.0,1.80910843]
[1721193804907,0.00084,66016.0,66015.0,1.82210843]
[1721193805474,0.00084,66016.0,66015.0,1.80910843]
[1721193805684,0.00084,66016.0,66015.0,2.82310843]
[1721193805885,0.00084,66016.0,66015.0,3.38924422]
[1721193806072,0.00084,66016.0,66015.0,3.41206943]
[1721193806219,0.00184,66016.0,66015.0,3.42506943]
[1721193806838,0.00284,66016.0,66015.0,3.43706943]
[1721193807040,0.00084,66016.0,66015.0,3.41106943]
[1721193807380,0.00184,66016.0,66015.0,3.42506943]
[1721193807735,0.00184,66016.0,66015.0,3.47506943]
[1721193808056,0.00184,66016.0,66015.0,3.33630657]
[1721193808264,0.00184,66016.0,66015.0,3.42505847]
[1721193810411,0.00184,66016.0,66015.0,3.43346847]
[1721193810908,0.00184,66016.0,66015.0,3.48346847]
[1721193811309,0.00184,66016.0,66015.0,3.48346676]
[1721193812013,0.00184,66016.0,66015.0,3.78642776]
[1721193812515,0.00184,66016.0,66015.0,4.57042776]
[1721193813027,0.00184,66016.0,66015.0,4.55742776]
[1721193813772,0.00084,66016.0,66015.0,4.54342776]
[1721193814203,0.00184,66016.0,66015.0,4.57042776]
[1721193814408,0.00184,66016.0,66015.0,4.44467757]
[1721193814604,0.00184,66016.0,66015.0,4.57042112]
[1721193814803,0.00184,66016.0,66015.0,4.43167757]
[1721193815009,0.00184,66016.0,66015.0,4.26846012]
[1721193815213,0.00184,66016.0,66015.0,4.21846012]
[1721193815416,0.00084,66016.0,66015.0,4.20446012]
[1721193815581,0.00084,66016.0,66015.0,4.24046012]
[1721193815781,0.00084,66016.0,66015.0,4.57142112]
[1721193815980,0.00084,66016.0,66015.0,4.44567757]
[1721193816180,0.00084,66016.0,66015.0,4.26846245]
[1721193816554,0.00084,66016.0,66015.0,4.25446245]
[1721193816890,0.00084,66016.0,66015.0,4.26846245]
[1721193817114,0.00084,66016.0,66015.0,4.25446245]
[1721193817573,0.00084,66016.0,66015.0,4.26846245]
[1721193817869,0.00084,66016.0,66015.0,4.268461]
[1721193817980,0.00084,66016.0,66015.0,4.254461]
[1721193818194,0.00084,66016.0,66015.0,4.268461]
[1721193818432,0.00084,66016.0,66015.0,4.571422]
[1721193818688,0.00084,66016.0,66015.0,4.557422]
[1721193818890,0.00084,66016.0,66015.0,4.543422]
[1721193819089,0.00084,66016.0,66015.0,4.571422]
[1721193820093,0.00084,66016.0,66015.0,4.268461]
[1721193820293,0.00084,66016.0,66015.0,4.21833344]
[1721193820927,0.00084,66016.0,66015.0,4.21833215]
[1721193821503,0.00084,66016.0,66015.0,4.57129315]
[1721193822231,0.00842,66040.0,66021.0,2.003631]